{"text_format":"3","workbook":"xlsx","n_sheets":3,"sheets":["Sheet1","Sheet2","Sheet3"],"read":"whole","date_system":"1900"}

{"sheet":"Sheet1","index":0,"n_rows":32,"n_cols":4,"rows_kept":32,"merged":[[1,0,1,3]]}
["附件"]
["中山市2025年通过清洁生产审核评估验收企业名单"]
["序号","企业名称","镇街","类型"]
[1,"广东创荣新材料科技有限公司","神湾镇","自愿性审核"]
[2,"龙门纺织（中山）有限公司","三角镇","自愿性审核"]
[3,"埃肯有机硅材料（中山）有限公司","民众街道","自愿性审核"]
[4,"中山市狮盾电气有限公司","古镇镇","自愿性审核"]
[5,"中山市基信锁芯有限公司","小榄镇","自愿性审核"]
[6,"中山市美全塑胶制品有限公司","神湾镇","自愿性审核"]
[7,"广东粤新纺织科技有限公司","沙溪镇","自愿性审核"]
[8,"正业包装（中山）有限公司","小榄镇","自愿性审核"]
[9,"好来化工（中山）有限公司","西区街道","自愿性审核"]
[10,"丝艾工业科技（中山）有限公司","板芙镇","自愿性审核"]
[11,"中山永发纸业有限公司","黄圃镇","自愿性审核"]
[12,"中山联合鸿兴造纸有限公司","沙溪镇","自愿性审核"]
[13,"中山市金致金属材料制品有限公司","五桂山街道","自愿性审核"]
[14,"台燿科技（中山）有限公司","火炬区","自愿性审核"]
[15,"中山市东凤镇华昊洗水服装厂","东凤镇","自愿性审核"]
[16," 国源国药（广东）制药集团有限公司","翠亨新区","自愿性审核"]
[17,"中山市花仙紫纺织印染有限公司","三角镇","自愿性审核"]
[18,"中山市朗坤环境科技有限公司","神湾镇","自愿性审核"]
[19,"广东申川机电设备有限公司","板芙镇","自愿性审核"]
[20,"中山市新明利玻璃制品有限公司","黄圃镇","自愿性审核"]
[21,"中山市旺铁表面处理有限公司","三角镇","强制性审核"]
[22,"中山市港联华凯电器制品有限公司","民众街道","强制性审核"]
[23,"广东依顿电子科技股份有限公司","三角镇","强制性审核"]
[24,"中山市易升鞋材有限公司","神湾镇","强制性审核"]
[25,"中山市大涌镇易城染织洗水有限公司","大涌镇","强制性审核"]
[26,"中山市东利服饰有限公司","大涌镇","强制性审核"]
[27,"中山市利鸿达服装洗水有限公司","大涌镇","强制性审核"]
[28,"中山市西区海洋五金加工制品厂","西区街道","强制性审核"]
[29,"中山市嘉顺电器有限公司阜沙分公司","阜沙镇","强制性审核"]

{"sheet":"Sheet2","index":1,"n_rows":126,"n_cols":3,"rows_kept":126,"merged":[[2,0,3,0],[2,1,3,1],[4,0,6,0],[4,1,6,1],[7,0,11,0],[7,1,11,1],[12,0,14,0],[12,1,14,1],[15,0,16,0],[15,1,16,1],[19,0,21,0],[19,1,21,1],[24,0,27,0],[24,1,27,1],[30,0,31,0],[30,1,31,1],[39,0,45,0],[39,1,45,1],[46,0,47,0],[46,1,47,1],[48,0,49,0],[48,1,49,1],[50,0,54,0],[50,1,54,1],[58,0,59,0],[58,1,59,1],[71,0,72,0],[71,1,72,1],[74,0,75,0],[74,1,75,1],[76,0,79,0],[76,1,79,1],[80,0,81,0],[80,1,81,1],[82,0,83,0],[82,1,83,1],[84,0,86,0],[84,1,86,1],[88,0,89,0],[88,1,89,1],[90,0,91,0],[90,1,91,1],[92,0,95,0],[92,1,95,1],[97,0,98,0],[97,1,98,1],[100,0,101,0],[100,1,101,1],[102,0,103,0],[102,1,103,1],[104,0,105,0],[104,1,105,1],[106,0,108,0],[106,1,108,1],[111,0,112,0],[111,1,112,1],[118,0,119,0],[118,1,119,1],[120,0,121,0],[120,1,121,1],[122,0,125,0],[122,1,125,1]]}
[]
["中山市科泰家具有限公司","广东省中山市南区 福涌西***",{"$f":"MID(B2,7,2)","v":"南区"}]
["广东乐心医疗电子股份有限公司","广东省中山市火炬区 东利路10****",{"$f":"MID(B3,7,2)","v":"火炬"}]
[null,null,""]
["中山大洋电机股份有限公司（自主申请）","广东省中山市西区 沙朗第三工业*******","西区"]
[null,null,""]
[null,null,""]
["广东欧曼科技股份有限公司","广东省中山市东凤镇 和通路***","东凤"]
[null,null,""]
[null,null,""]
[null,null,""]
[null,null,""]
["中山市艺晋印刷有限公司","广东省中山市坦洲镇 龙塘三路20*********","坦洲"]
[null,null,""]
[null,null,""]
["中山奥绮斯摩涂料有限公司","广东省中山市火炬区 十涌路***","火炬"]
[null,null,""]
["中山市联丰印染有限公司（自主申请）","广东省中山市三角镇 昌隆路8***","三角"]
["中山金利宝新材料股份有限公司","广东省中山市小榄镇 工业基地北部*******","小榄"]
["广东坚朗精密制造有限公司","广东省中山市小榄镇 联丰聚新路6************","小榄"]
[null,null,""]
[null,null,""]
["中山市荣佳电子科技有限公司","广东省中山市火炬区 沿江东四****","火炬"]
["广东志臣科技股份有限公司","广东省中山市坦洲镇 坦洲永一工业***********","坦洲"]
["中山铨欣智能照明有限公司","广东省中山市西区 宏基路1号****","西区"]
[null,null,""]
[null,null,""]
[null,null,""]
["中山喜玛拉雅户外用品有限公司","广东省中山市火炬区 中山市火炬高***************","火炬"]
["中山隆达包装印刷有限公司","广东省中山市南朗镇 第一工业区花*************","南朗"]
["中山市文成电路板有限公司（自愿）","广东省中山市小榄镇 宝丰怡生***","小榄"]
[null,null,""]
["中山雅特生科技有限公司","广东省中山市石岐区 岐关西路***","石岐"]
["广东三和管桩股份有限公司（自主申请）","广东省中山市小榄镇 同兴东路***","小榄"]
["中山市汉仁电子有限公司","广东省中山市小榄镇 工业区工业大*****",{"$f":"MID(B35,7,2)","v":"小榄"}]
["品谱五金家居（中山）有限公司（自主申请）","广东省中山市小榄镇 木林森大****","小榄"]
["中山市宏胜铝业有限公司","广东省中山市港口镇 群富工业****","港口"]
["广东长虹器件科技有限公司","广东省中山市南头镇 同济西路****","南头"]
["广东贝林能源设备有限公司","广东省中山市三乡镇 中山市三乡镇******","三乡"]
["中山市诺一五金制品有限公司","广东省中山市民众镇 多宝社区居民****************","民众"]
[null,null,""]
[null,null,""]
[null,null,""]
[null,null,""]
[null,null,""]
[null,null,""]
["中山市翠山机械制造有限公司","广东省中山市南区 渡头西环一路*******","南区"]
[null,null,""]
["广东樱花智能科技有限公司","广东省中山市小榄镇 宝丰宝成路*****","小榄"]
[null,null,""]
["中山市三角镇鸿泰印染厂","广东省中山市三角镇 高平化**","三角"]
[null,null,""]
[null,null,""]
[null,null,""]
[null,null,""]
["广东华美骏达电器有限公司","广东省中山市东凤镇 东阜一路***","东凤"]
["广东晶得光电有限公司","广东省中山市石岐区 员锋员兴路容***************","石岐"]
["中山市健辉生物能源科技有限公司","广东省中山市板芙镇 深湾村宏****","板芙"]
["中山市红荔枝电器制造有限公司","广东省中山市黄圃镇 圃横*","黄圃"]
[null,null,""]
["中山辰元纺织科技有限公司","广东省中山市三乡镇 平昌路2***","三乡"]
["建华建材（中山）有限公司","广东省中山市小榄镇 绩东一福安****","小榄"]
["中山市恒宝塑料包装材料有限公司(自主申请）","广东省中山市东区 白沙湾工业*****","东区"]
["广东隆赋药业股份有限公司（自主申请）","广东省中山市南朗镇 华南现代中医********","南朗"]
["中山市联昌喷雾泵有限公司","广东省中山市南头镇 东福北路***","南头"]
["中山市东港家具制造有限公司","广东省中山市小榄镇 葵兴大道永****","小榄"]
["中山市聚虹电器有限公司","广东省中山市横栏镇 中横大道西*****",{"$f":"MID(B67,7,2)","v":"横栏"}]
["中山市鹰飞电器有限公司","广东省中山市三乡镇 新圩村永泰*****","三乡"]
["中山市志丰印刷实业有限公司","广东省中山市小榄镇 西区工**","小榄"]
["广东嘉豪食品有限公司","广东省中山市港口镇 沙港西路***","港口"]
["中山圣而富五金科技有限公司","广东省中山市东升镇 顺畅路***","东升"]
["鸿利达精密装备（中山）有限公司","广东省中山市翠亨新区 中准道***","翠亨"]
[null,null,""]
["方泰（广东）科技有限公司","广东省中山市翠亨新区 翠城道31*****","翠亨"]
["中山市联丰印染有限公司第一分公司","广东省中山市三角镇 昌隆北街5号***********","三角"]
[null,null,""]
["广东东溢新材料科技有限公司","广东省中山市南区 昌盛路***","南区"]
[null,null,""]
[null,null,""]
[null,null,""]
["中山市普瑞斯光学技术有限公司","广东省中山市火炬区 开发区沿江东*************","火炬"]
[null,null,""]
["维加智能科技（广东）有限公司","广东省中山市南朗镇 南朗镇南朗工******","南朗"]
[null,null,""]
["中山市兴盛浆染整理有限公司","广东省中山市三角镇 三角镇昌隆西*****","三角"]
[null,null,""]
[null,null,""]
["中山兴德纺织浆染有限公司","广东省中山市三角镇 高平工业区昌*****","三角"]
["埃肯有机硅（广东）有限公司","广东省中山市火炬区 沿江西二***","火炬"]
[null,null,""]
["中山南顺制衣有限公司","广东省中山市火炬区 科技大道***","火炬"]
[null,null,""]
["中山雅黛日用化工有限公司","广东省中山市阜沙镇 广东省中山市********","阜沙"]
[null,null,""]
[null,null,""]
[null,null,""]
["麦卡尼食品设备（中山）有限公司","广东省中山市南区 大新路**","南区"]
["广东弘景光电科技股份有限公司","广东省中山市火炬区 勤业路***","火炬"]
[null,null,{"$f":"MID(B99,7,2)","v":""}]
["中山一麟包装设备有限公司","广东省中山市火炬区 环茂一路15***********","火炬"]
["中山鸿兴印刷包装有限公司","广东省中山市火炬区 逸仙路2****","火炬"]
[null,null,""]
["中山市福仕得健身器材有限公司","广东省中山市火炬区 中山火炬开发***********************","火炬"]
[null,null,""]
["中山市鑫博雅斯精密刀具有限公司","广东省中山市民众镇 新平村平三路*********","民众"]
[null,null,""]
["三才石岐制药股份有限公司","广东省中山市火炬区 国家健康产业************","火炬"]
[null,null,""]
[null,null,""]
["中山欧尼克卫浴有限公司","广东省中山市火炬区 建业西路***","火炬"]
["中山市南亚化工有限公司","广东省中山市三角镇 迪源路***","三角"]
["中山奕安泰医药科技有限公司","广东省中山市火炬区 仲景路**","火炬"]
[null,null,""]
["中山市立帝盈塑胶制品有限公司","广东省中山市民众镇 接源村接福路**********","民众"]
["中山长虹电器有限公司（第二轮自愿）","广东省中山市南头镇 南头大**","南头"]
["中山市鸿创包装制品有限公司","广东省中山市南头镇 兴业北路1*****","南头"]
["TCL德龙家用电器（中山）有限公司（自主申请）","广东省中山市南头镇 升辉北***","南头"]
["广东通宇通讯股份有限公司","广东省中山市火炬区 东镇东二***","火炬"]
["广东原泰动力科技有限公司","广东省中山市小榄镇 东锐三路13************","小榄"]
[null,null,""]
["中山高泰电器有限公司","广东省中山市南头镇 东福北路86*********","南头"]
[null,null,""]
["广东镖臣防盗设备有限公司","广东省中山市小榄镇 埒西一广丰工********","小榄"]
[null,null,""]
[null,null,""]
[null,null,""]

{"sheet":"Sheet3","index":2,"n_rows":0,"n_cols":0,"rows_kept":0}